fUSD/lending_fUSD_20260107
["ID","MTS","AMOUNT","RATE_DAILY","PERIOD"]
[400654760,1767769842802,-34569.0786975,0.00021484,2]
[400654762,1767769842811,-173.84541139,0.00021489,2]
[400654764,1767769842820,-1000.0,0.00021499,2]
[400654766,1767769842830,-52813.06967648,0.000215,2]
[400654768,1767769842839,-221.79455944,0.000215,2]
[400654770,1767769842848,-167.8709529,0.00021578,2]
[400654772,1767769842857,-500.0,0.00021616,2]
[400654774,1767769842867,-258.0199552,0.00021616,2]
[400654776,1767769842876,-966.3681034,0.00021616,2]
[400654778,1767769842885,-500.0,0.00021616,2]
[400654780,1767769842895,-1259.28401852,0.00021616,2]
[400654782,1767769842904,-1092.76567914,0.00021616,2]
[400654784,1767769842913,-500.0,0.00021616,2]
[400654786,1767769842922,-769.65052735,0.00021616,2]
[400654788,1767769842932,-500.0,0.00021616,2]
[400654790,1767769842941,-758.07274293,0.00021616,2]
[400654792,1767769842951,-500.0,0.00021616,2]
[400654794,1767769842959,-250.70447408,0.00021616,2]
[400654796,1767769842969,-472.18144004,0.00021616,2]
[400654798,1767769842978,-500.0,0.00021616,2]
[400654800,1767769842987,-500.0,0.00021616,2]
[400654802,1767769842996,-287.61899177,0.00021631,2]
[400654804,1767769843005,-1903.1,0.00021869,2]
[400654806,1767769843014,-151.0,0.00021869,2]
[400654808,1767769843023,-151.0,0.00021869,2]
[400654810,1767769843033,-151.0,0.00021869,2]
[400654812,1767769843042,-303.816362,0.00021869,2]
[400654814,1767769843051,-303.816362,0.00021869,2]
[400654816,1767769843061,-303.816362,0.00021869,2]
[400654818,1767769843070,-303.816362,0.00021869,2]
[400654820,1767769843080,-5000.0,0.00021918,2]
[400654822,1767769843090,-250.312497,0.00021918,2]
[400654824,1767769843099,-500.0,0.00021918,2]
[400654826,1767769843108,-500.0,0.00021918,2]
[400654828,1767769843117,-150.06442674,0.00021918,2]
[400654830,1767769843127,-350.712633,0.00021918,2]
[400654832,1767769843136,-350.712633,0.00021918,2]
[400654834,1767769843145,-844.26,0.00022,2]
[400654836,1767769843155,-3641.58263655,0.00022087,2]
[400654838,1767769843165,-292.4210947,0.00022146,2]
[400654840,1767769843174,-350.8253105,0.00022263,2]
[400654842,1767769843184,-7713.4040659,0.00022263,2]
[400654844,1767769843196,-166.87,0.00022299,2]
[400654846,1767769843204,-157.33,0.00022452,2]
[400654848,1767769843214,-3280.0,0.00022477,2]
[400654850,1767769843224,-298.26089446,0.00023,2]
[400654852,1767769843235,-503.95049056,0.00023368,2]
[400654854,1767769843244,-277.98,0.0002337,2]
[400654857,1767769843253,-1000.0,0.00023649,2]
[400654859,1767769843264,-1903.1,0.00024033,2]
[400654860,1767769843273,-309.29654756,0.00024369,2]
[400654862,1767769843282,-200.0,0.0002446,2]
[400654864,1767769843291,-200.0,0.00024461,2]
[400654865,1767769843301,-200.0,0.00024461,2]
[400654867,1767769843310,-157.33,0.00024494,2]
[400654869,1767769843319,-3641.58263655,0.00024631,2]
[400654871,1767769843329,-3240.0,0.00024658,2]
[400654872,1767769843338,-1000.0,0.00024658,2]
[400654874,1767769843347,-151.0,0.00024658,2]
[400654876,1767769843356,-151.0,0.00024658,2]
[400654878,1767769843365,-151.0,0.00024728,7]
[400654879,1767769843374,-151.0,0.00024728,7]
[400654881,1767769843383,-165.690399,0.000248,7]
[400654883,1767769843393,-151.0,0.000248,7]
[400654884,1767769843403,-151.0,0.000248,7]
[400654886,1767769843412,-151.0,0.000248,7]
[400654888,1767769843421,-151.0,0.000248,7]
[400654889,1767769843431,-151.0,0.000248,7]
[400654891,1767769843439,-189.587143,0.000248,7]
[400654893,1767769843448,-189.587143,0.000248,7]
[400654895,1767769843457,-189.587143,0.000248,7]
[400654896,1767769843466,-189.587143,0.000248,7]
[400654898,1767769843475,-151.0,0.000248,7]
[400654900,1767769843488,-1948.565341,0.000248,7]
[400654902,1767769843497,-1948.565341,0.000248,7]
[400654903,1767769843506,-1948.565341,0.000248,7]
[400654905,1767769843515,-1948.565341,0.000248,7]
[400654907,1767769843525,-181.958378,0.000248,7]
[400654909,1767769843534,-178.256754,0.000248,7]
[400654911,1767769843543,-181.958378,0.000248,7]
[400654912,1767769843552,-178.256754,0.000248,7]
[400654914,1767769843561,-181.958378,0.000248,7]
[400654916,1767769843571,-178.256754,0.000248,7]
[400654918,1767769843580,-181.958378,0.000248,7]
[400654920,1767769843590,-178.256754,0.000248,7]
[400654922,1767769843601,-157.892488,0.000248,7]
[400654923,1767769843610,-157.892488,0.000248,7]
[400654925,1767769843620,-157.892488,0.000248,7]
[400654927,1767769843629,-157.892488,0.000248,7]
[400654929,1767769843638,-91498.0512709,0.000248,3]
[400654930,1767769843647,-500.0,0.00024899,2]
[400654932,1767769843657,-421.064646,0.000249,2]
[400654934,1767769843666,-844.26,0.000249,2]
[400654936,1767769843676,-331836.637639,0.000249,3]
[400654937,1767769843685,-323.0,0.00025,15]
[400654939,1767769843695,-251.49997666,0.00025097,2]
[400654941,1767769843704,-320.74051982,0.00025738,2]
[400654963,1767769843942,-1000.0,0.00025799,2]
[400654965,1767769843951,-173.84541139,0.00025859,2]
[400654967,1767769843961,-170.55,0.00025992,2]
[400654968,1767769843971,-266.46,0.00026027,2]
[400654970,1767769843982,-366.87,0.00026072,2]
[400654972,1767769843997,-167.8709529,0.00026158,2]
[400654974,1767769844007,-1903.1,0.00026197,2]
[400654976,1767769844017,-150.27,0.00026401,2]
[400654978,1767769844027,-5445.91,0.00026591,2]
[400654980,1767769844036,-150.99,0.00026591,2]
[400654981,1767769844045,-3221.49,0.00026591,2]
[400654983,1767769844055,-332.60791905,0.00027107,2]
[400654985,1767769844065,-163.18445164,0.00027136,2]
[400654987,1767769844074,-3641.58263655,0.00027176,2]
[400654989,1767769844084,-150.0,0.00027369,2]
[400654991,1767769844094,-351.0,0.00027397,5]
[400654993,1767769844103,-337.4,0.00027397,3]
[400654994,1767769844112,-318.0,0.00027397,6]
[400654996,1767769844122,-318.4,0.00027397,7]
[400654998,1767769844131,-326.0,0.00027397,7]
[400655000,1767769844141,-424.2,0.00027397,5]
[400655002,1767769844150,-315.4,0.00027397,6]
[400655003,1767769844160,-304.4,0.00027397,3]
[400655005,1767769844169,-447.6,0.00027397,2]
[400655007,1767769844178,-467.6,0.00027397,2]
[400655009,1767769844189,-510.04,0.00027397,30]
[400655011,1767769844200,-500.0,0.00027397,20]
[400655013,1767769844210,-151.0,0.00027397,7]
[400655015,1767769844220,-246.493531,0.00027397,7]
[400655016,1767769844231,-151.0,0.00027397,7]
[400655018,1767769844241,-151.0,0.00027397,7]
[400655020,1767769844251,-151.0,0.00027397,7]
[400655022,1767769844261,-151.0,0.00027397,7]
[400655024,1767769844273,-914.0,0.00027659,2]
[400655026,1767769844283,-1201.0,0.00027659,2]
[400655028,1767769844293,-2436.0,0.00027659,2]
[400655030,1767769844302,-4818.0,0.00027659,2]
[400655032,1767769844312,-6551.0,0.00027659,2]
[400655033,1767769844321,-3689.7,0.00027735,2]
[400655035,1767769844331,-844.26,0.000278,2]
[400655037,1767769844341,-1903.1,0.00028361,2]
[400655039,1767769844350,-344.91441206,0.00028476,2]
[400655041,1767769844359,-228.6965726,0.00028683,2]
[400655043,1767769844368,-300.7583868,0.00028707,2]
[400655044,1767769844378,-686.08971792,0.00028707,2]
[400655046,1767769844388,-150.0,0.00028755,2]
[400655048,1767769844397,-150.0,0.00028755,2]
[400655050,1767769844406,-150.0,0.00028755,2]
[400655052,1767769844416,-150.0,0.00028755,2]
[400655054,1767769844426,-150.0,0.00028755,2]
[400655055,1767769844435,-1330.0,0.00028755,2]
[400655057,1767769844444,-614.0,0.00028755,2]
[400655059,1767769844454,-3595.003,0.00028755,2]
[400655061,1767769844463,-1405.0,0.00028755,2]
[400655063,1767769844472,-1266.0,0.00028755,2]
[400655065,1767769844483,-505.0,0.00028755,2]
[400655067,1767769844493,-686.08971792,0.0002879,5]
[400655068,1767769844503,-686.08971792,0.00028873,9]
[400655070,1767769844512,-686.08971792,0.00028957,13]
[400655072,1767769844521,-686.08971792,0.0002904,16]
[400655074,1767769844531,-350.712633,0.00029123,2]
[400655076,1767769844540,-151.0,0.00029123,7]
[400655077,1767769844551,-151.0,0.00029123,7]
[400655079,1767769844560,-686.08971792,0.00029123,20]
[400655082,1767769844571,-686.08971792,0.00029207,24]
[400655084,1767769844581,-686.08971792,0.0002929,28]
[400655086,1767769844591,-224.0,0.00029322,2]
[400655087,1767769844601,-686.08971792,0.00029373,31]
[400655088,1767769844612,-1000.0,0.00029434,7]
[400655089,1767769844623,-686.08971792,0.00029457,35]
[400655090,1767769844633,-686.08971792,0.0002954,39]
[400655091,1767769844643,-224.0,0.00029596,2]
[400655092,1767769844653,-686.08971792,0.00029624,42]
[400655093,1767769844663,-251.49997666,0.00029664,2]
[400655094,1767769844673,-844.26,0.000297,2]
[400655095,1767769844685,-303.816362,0.000297,7]
[400655096,1767769844698,-303.816362,0.000297,7]
[400655097,1767769844708,-303.816362,0.000297,7]
[400655098,1767769844718,-303.816362,0.000297,7]
[400655099,1767769844727,-686.08971792,0.00029707,46]
[400655100,1767769844737,-3641.58263655,0.00029721,2]
[400655101,1767769844747,-224.0,0.00029788,2]
[400655103,1767769844756,-686.08971792,0.0002979,50]
[400655105,1767769844776,-471.55,0.000298,14]
[400655107,1767769844786,-397.91254726,0.00029845,2]
[400655109,1767769844795,-686.08971792,0.00029874,54]
[400655111,1767769844806,-501.0,0.00029877,2]
[400655113,1767769844816,-224.0,0.00029877,2]
[400655116,1767769844826,-228.6965726,0.00029891,56]
[400655118,1767769844835,-300.7583868,0.00029915,56]
[400655120,1767769844845,-686.08971792,0.00029957,57]
[400655122,1767769844854,-224.0,0.00030039,7]
[400655124,1767769844864,-686.08971792,0.0003004,61]
[400655126,1767769844873,-224.0,0.00030067,2]
[400655127,1767769844883,-224.0,0.00030118,2]
[400655130,1767769844892,-686.08971792,0.00030124,65]
[400655132,1767769844901,-686.08971792,0.00030207,69]
[400655134,1767769844911,-173.84541139,0.00030229,2]
[400655136,1767769844920,-224.0,0.00030285,2]
[400655138,1767769844930,-686.08971792,0.0003029,72]
[400655140,1767769844939,-686.08971792,0.00030374,76]
[400655141,1767769844948,-686.08971792,0.00030457,80]
[400655143,1767769844958,-224.0,0.00030458,2]
[400655146,1767769844967,-224.0,0.00030515,7]
[400655148,1767769844977,-1903.1,0.00030525,2]
[400655150,1767769844986,-686.08971792,0.00030541,83]
[400655151,1767769844996,-686.08971792,0.00030624,87]
[400655154,1767769845006,-914.0,0.00030659,2]
[400655156,1767769845015,-1201.0,0.00030659,2]
[400655158,1767769845025,-2436.0,0.00030659,2]
[400655160,1767769845035,-4818.0,0.00030659,2]
[400655162,1767769845044,-6551.0,0.00030659,2]
[400655164,1767769845054,-224.0,0.00030663,2]
[400655166,1767769845063,-686.08971792,0.00030707,91]
[400655168,1767769845073,-167.8709529,0.00030739,2]
[400655170,1767769845082,-686.08971792,0.00030791,95]
[400655172,1767769845091,-224.0,0.00030818,2]
[400655174,1767769845101,-686.08971792,0.00030874,98]
[400655176,1767769845111,-224.0,0.0003094,2]
[400655178,1767769845121,-686.08971792,0.00030957,102]
[400655180,1767769845130,-224.0,0.00031024,2]
[400655182,1767769845140,-686.08971792,0.00031041,106]
[400655184,1767769845149,-228.6965726,0.00031099,110]
[400655186,1767769845158,-224.0,0.00031104,2]
[400655188,1767769845168,-300.7583868,0.00031124,110]
[400655190,1767769845177,-224.0,0.00031284,2]
[400655192,1767769845187,-224.0,0.00031304,2]
[400655194,1767769845201,-151.0,0.00031507,31]
[400655196,1767769845211,-179.789439,0.00031507,31]
[400655198,1767769845221,-179.789439,0.00031507,31]
[400655200,1767769845231,-179.789439,0.00031507,31]
[400655202,1767769845240,-179.789439,0.00031507,31]
[400655204,1767769845249,-179.789439,0.00031507,31]
[400655206,1767769845259,-179.789439,0.00031507,31]
[400655208,1767769845270,-179.789439,0.00031507,31]
[400655210,1767769845279,-179.789439,0.00031507,31]
[400655212,1767769845289,-151.0,0.00031507,31]
[400655214,1767769845298,-151.0,0.00031507,31]
[400655216,1767769845307,-151.0,0.00031507,31]
[400655218,1767769845316,-151.0,0.00031507,31]
[400655220,1767769845328,-151.0,0.00031507,31]
[400655222,1767769845338,-151.0,0.00031507,31]
[400655224,1767769845347,-227.456559,0.00031507,31]
[400655226,1767769845356,-151.0,0.00031507,31]
[400655228,1767769845366,-151.0,0.00031507,31]
[400655230,1767769845375,-151.0,0.00031507,31]
[400655232,1767769845383,-151.0,0.00031507,31]
[400655234,1767769845393,-151.0,0.00031507,31]
[400655236,1767769845402,-191.538908,0.00031507,31]
[400655238,1767769845412,-152.286375,0.00031507,31]
[400655240,1767769845421,-151.0,0.00031507,31]
[400655242,1767769845430,-151.0,0.00031507,31]
[400655244,1767769845439,-151.0,0.00031507,31]
[400655246,1767769845448,-280.15737,0.00031507,31]
[400655248,1767769845458,-151.0,0.00031507,31]
[400655250,1767769845467,-153.862625,0.00031507,31]
[400655252,1767769845475,-166.653075,0.00031507,31]
[400655254,1767769845485,-151.0,0.00031507,31]
[400655256,1767769845494,-155.108099,0.00031507,31]
[400655258,1767769845503,-155.144247,0.00031507,31]
[400655260,1767769845512,-658.245968,0.00031507,31]
[400655262,1767769845521,-151.0,0.00031507,31]
[400655264,1767769845531,-658.245968,0.00031507,31]
[400655266,1767769845540,-151.0,0.00031507,31]
[400655268,1767769845549,-658.245968,0.00031507,31]
[400655270,1767769845558,-658.245968,0.00031507,31]
[400655272,1767769845567,-1070.624539,0.00031507,31]
[400655274,1767769845576,-1070.624539,0.00031507,31]
[400655276,1767769845586,-658.245968,0.00031507,31]
[400655278,1767769845596,-658.245968,0.00031507,31]
[400655280,1767769845605,-1070.624539,0.00031507,31]
[400655282,1767769845615,-1070.624539,0.00031507,31]
[400655284,1767769845624,-658.245968,0.00031507,31]
[400655286,1767769845633,-658.245968,0.00031507,31]
[400655288,1767769845642,-1070.624539,0.00031507,31]
[400655290,1767769845652,-1070.624539,0.00031507,31]
[400655292,1767769845661,-1070.624539,0.00031507,31]
[400655294,1767769845670,-1070.624539,0.00031507,31]
[400655296,1767769845679,-189.498952,0.00031507,31]
[400655298,1767769845689,-261.971332,0.00031507,31]
[400655300,1767769845698,-1378.924321,0.00031507,31]
[400655302,1767769845707,-1378.924321,0.00031507,31]
[400655304,1767769845718,-1378.924321,0.00031507,31]
[400655306,1767769845727,-1378.924321,0.00031507,31]
[400655308,1767769845736,-703.048742,0.00031507,31]
[400655310,1767769845745,-703.048742,0.00031507,31]
[400655312,1767769845756,-1378.924321,0.00031507,31]
[400655314,1767769845765,-1378.924321,0.00031507,31]
[400655316,1767769845775,-703.048742,0.00031507,31]
[400655318,1767769845784,-703.048742,0.00031507,31]
[400655320,1767769845795,-1378.924321,0.00031507,31]
[400655322,1767769845804,-1378.924321,0.00031507,31]
[400655324,1767769845813,-703.048742,0.00031507,31]
[400655326,1767769845822,-703.048742,0.00031507,31]
[400655328,1767769845832,-703.048742,0.00031507,31]
[400655330,1767769845842,-703.048742,0.00031507,31]
[400655332,1767769845851,-471.891525,0.00031507,31]
[400655334,1767769845860,-471.891525,0.00031507,31]
[400655336,1767769845869,-471.891525,0.00031507,31]
[400655338,1767769845879,-471.891525,0.00031507,31]
[400655340,1767769845890,-471.891525,0.00031507,31]
[400655342,1767769845899,-471.891525,0.00031507,31]
[400655344,1767769845909,-471.891525,0.00031507,31]
[400655346,1767769845918,-471.891525,0.00031507,31]
[400655348,1767769845928,-995.494573,0.00031507,31]
[400655350,1767769845938,-995.494573,0.00031507,31]
[400655352,1767769845947,-208.116406,0.00031507,31]
[400655354,1767769845956,-995.494573,0.00031507,31]
[400655356,1767769845965,-995.494573,0.00031507,31]
[400655358,1767769845975,-995.494573,0.00031507,31]
[400655360,1767769845984,-995.494573,0.00031507,31]
[400655362,1767769845993,-995.494573,0.00031507,31]
[400655364,1767769846003,-995.494573,0.00031507,31]
[400655366,1767769846011,-151.0,0.00031507,31]
[400655368,1767769846021,-151.0,0.00031507,31]
[400655370,1767769846030,-151.0,0.00031507,31]
[400655372,1767769846039,-151.0,0.00031507,31]
[400655374,1767769846048,-151.0,0.00031507,31]
[400655376,1767769846057,-151.0,0.00031507,31]
[400655378,1767769846066,-160.752918,0.00031507,31]
[400655380,1767769846075,-151.0,0.00031507,31]
[400655382,1767769846085,-188.88428,0.00031507,31]
[400655384,1767769846094,-151.0,0.00031507,31]
[400655386,1767769846103,-151.0,0.00031507,31]
[400655388,1767769846112,-151.0,0.00031507,31]
[400655390,1767769846122,-151.0,0.00031507,31]
[400655392,1767769846131,-151.0,0.00031507,31]
[400655394,1767769846140,-151.0,0.00031507,31]
[400655396,1767769846149,-151.0,0.00031507,31]
[400655398,1767769846159,-247.867573,0.00031507,31]
[400655401,1767769846169,-151.0,0.00031507,31]
[400655403,1767769846178,-172.21438,0.00031507,31]
[400655405,1767769846188,-591.872125,0.00031507,31]
[400655407,1767769846201,-591.872125,0.00031507,31]
[400655409,1767769846211,-591.872125,0.00031507,31]
[400655411,1767769846220,-591.872125,0.00031507,31]
[400655413,1767769846231,-591.872125,0.00031507,31]
[400655415,1767769846240,-591.872125,0.00031507,31]
[400655417,1767769846249,-591.872125,0.00031507,31]
[400655419,1767769846259,-591.872125,0.00031507,31]
[400655421,1767769846270,-929.449749,0.00031507,31]
[400655422,1767769846361,-929.449749,0.00031507,31]
[400655423,1767769846371,-929.449749,0.00031507,31]
[400655424,1767769846380,-929.449749,0.00031507,31]
[400655425,1767769846389,-929.449749,0.00031507,31]
[400655426,1767769846399,-929.449749,0.00031507,31]
[400655427,1767769846408,-164.602406,0.00031507,31]
[400655428,1767769846419,-929.449749,0.00031507,31]
[400655429,1767769846429,-164.602406,0.00031507,31]
[400655430,1767769846438,-929.449749,0.00031507,31]
[400655431,1767769846448,-164.602406,0.00031507,31]
[400655432,1767769846458,-164.602406,0.00031507,31]
[400655433,1767769846467,-164.602406,0.00031507,31]
[400655434,1767769846478,-164.602406,0.00031507,31]
[400655435,1767769846486,-164.602406,0.00031507,31]
[400655437,1767769846497,-164.602406,0.00031507,31]
[400655439,1767769846506,-164.602406,0.00031507,31]
[400655440,1767769846515,-151.0,0.00031507,31]
[400655441,1767769846523,-151.0,0.00031507,31]
[400655442,1767769846533,-151.0,0.00031507,31]
[400655443,1767769846542,-156.299182,0.00031507,31]
[400655444,1767769846551,-164.602406,0.00031507,31]
[400655445,1767769846560,-215.388263,0.00031507,31]
[400655446,1767769846570,-164.602406,0.00031507,31]
[400655447,1767769846579,-164.602406,0.00031507,31]
[400655448,1767769846588,-551.561254,0.00031507,31]
[400655449,1767769846598,-551.561254,0.00031507,31]
[400655450,1767769846607,-551.561254,0.00031507,31]
[400655451,1767769846617,-551.561254,0.00031507,31]
[400655452,1767769846626,-551.561254,0.00031507,31]
[400655453,1767769846636,-551.561254,0.00031507,31]
[400655454,1767769846645,-1737.735026,0.00031507,31]
[400655455,1767769846655,-1737.735026,0.00031507,31]
[400655456,1767769846664,-551.561254,0.00031507,31]
[400655457,1767769846673,-1737.735026,0.00031507,31]
[400655458,1767769846683,-551.561254,0.00031507,31]
[400655459,1767769846691,-551.561254,0.00031507,31]
[400655460,1767769846702,-1737.735026,0.00031507,31]
[400655461,1767769846711,-1737.735026,0.00031507,31]
[400655462,1767769846720,-1737.735026,0.00031507,31]
[400655463,1767769846730,-551.561254,0.00031507,31]
[400655464,1767769846740,-551.561254,0.00031507,31]
[400655465,1767769846750,-551.561254,0.00031507,31]
[400655466,1767769846760,-1737.735026,0.00031507,31]
[400655467,1767769846769,-1737.735026,0.00031507,31]
[400655468,1767769846778,-1737.735026,0.00031507,31]
[400655469,1767769846787,-1737.735026,0.00031507,31]
[400655470,1767769846796,-1737.735026,0.00031507,31]
[400655471,1767769846806,-420.77578,0.00031507,31]
[400655472,1767769846817,-242.109031,0.00031507,31]
[400655473,1767769846827,-1737.735026,0.00031507,31]
[400655474,1767769846836,-420.77578,0.00031507,31]
[400655475,1767769846845,-242.109031,0.00031507,31]
[400655476,1767769846855,-420.77578,0.00031507,31]
[400655477,1767769846864,-242.109031,0.00031507,31]
[400655478,1767769846873,-420.77578,0.00031507,31]
[400655479,1767769846882,-242.109031,0.00031507,31]
[400655480,1767769846891,-420.77578,0.00031507,31]
[400655481,1767769846900,-242.109031,0.00031507,31]
[400655482,1767769846910,-420.77578,0.00031507,31]
[400655483,1767769846919,-242.109031,0.00031507,31]
[400655484,1767769846928,-420.77578,0.00031507,31]
[400655485,1767769846938,-420.77578,0.00031507,31]
[400655486,1767769846948,-242.109031,0.00031507,31]
[400655487,1767769846957,-420.77578,0.00031507,31]
[400655488,1767769846967,-242.109031,0.00031507,31]
[400655489,1767769846976,-890.463938,0.00031507,31]
[400655490,1767769846985,-242.109031,0.00031507,31]
[400655491,1767769846996,-890.463938,0.00031507,31]
[400655492,1767769847006,-890.463938,0.00031507,31]
[400655493,1767769847015,-420.77578,0.00031507,31]
[400655495,1767769847025,-242.109031,0.00031507,31]
[400655496,1767769847035,-289.06162,0.00031507,31]
[400655497,1767769847044,-420.77578,0.00031507,31]
[400655498,1767769847055,-242.109031,0.00031507,31]
[400655499,1767769847065,-289.06162,0.00031507,31]
[400655500,1767769847075,-420.77578,0.00031507,31]
[400655501,1767769847084,-242.109031,0.00031507,31]
[400655502,1767769847094,-289.06162,0.00031507,31]
[400655503,1767769847104,-890.463938,0.00031507,31]
[400655504,1767769847114,-890.463938,0.00031507,31]
[400655505,1767769847125,-890.463938,0.00031507,31]
[400655506,1767769847135,-289.06162,0.00031507,31]
[400655507,1767769847144,-289.06162,0.00031507,31]
[400655508,1767769847155,-289.06162,0.00031507,31]
[400655509,1767769847164,-890.463938,0.00031507,31]
[400655510,1767769847173,-890.463938,0.00031507,31]
[400655511,1767769847183,-289.06162,0.00031507,31]
[400655512,1767769847195,-890.463938,0.00031507,31]
[400655513,1767769847205,-289.06162,0.00031507,31]
[400655514,1767769847214,-289.06162,0.00031507,31]
[400655515,1767769847223,-890.463938,0.00031507,31]
[400655516,1767769847234,-890.463938,0.00031507,31]
[400655517,1767769847244,-890.463938,0.00031507,31]
[400655518,1767769847253,-289.06162,0.00031507,31]
[400655519,1767769847265,-289.06162,0.00031507,31]
[400655520,1767769847274,-289.06162,0.00031507,31]
[400655521,1767769847283,-151.0,0.00031507,31]
[400655522,1767769847293,-422.686257,0.00031507,31]
[400655523,1767769847302,-422.686257,0.00031507,31]
[400655524,1767769847311,-422.686257,0.00031507,31]
[400655525,1767769847321,-422.686257,0.00031507,31]
[400655526,1767769847330,-422.686257,0.00031507,31]
[400655527,1767769847340,-422.686257,0.00031507,31]
[400655528,1767769847349,-422.686257,0.00031507,31]
[400655529,1767769847359,-422.686257,0.00031507,31]
[400655530,1767769847368,-422.686257,0.00031507,31]
[400655531,1767769847377,-422.686257,0.00031507,31]
[400655532,1767769847387,-422.686257,0.00031507,31]
[400655533,1767769847396,-422.686257,0.00031507,31]
[400655534,1767769847406,-166.942435,0.00031507,31]
[400655535,1767769847415,-151.0,0.00031507,31]
[400655536,1767769847425,-151.0,0.00031507,31]
[400655537,1767769847436,-151.0,0.00031507,31]
[400655538,1767769847445,-229.392799,0.00031507,31]
[400655539,1767769847455,-151.0,0.00031507,31]
[400655540,1767769847464,-151.0,0.00031507,31]
[400655541,1767769847474,-227.633648,0.00031507,31]
[400655542,1767769847483,-151.0,0.00031507,31]
[400655543,1767769847493,-432.316647,0.00031507,31]
[400655544,1767769847502,-432.316647,0.00031507,31]
[400655545,1767769847511,-432.316647,0.00031507,31]
[400655546,1767769847520,-432.316647,0.00031507,31]
[400655547,1767769847529,-432.316647,0.00031507,31]
[400655548,1767769847539,-432.316647,0.00031507,31]
[400655549,1767769847548,-432.316647,0.00031507,31]
[400655550,1767769847557,-432.316647,0.00031507,31]
[400655551,1767769847567,-432.316647,0.00031507,31]
[400655552,1767769847576,-432.316647,0.00031507,31]
[400655553,1767769847585,-432.316647,0.00031507,31]
[400655554,1767769847594,-432.316647,0.00031507,31]
[400655555,1767769847604,-151.0,0.00031507,31]
[400655556,1767769847614,-151.0,0.00031507,31]
[400655557,1767769847624,-151.0,0.00031507,31]
[400655558,1767769847633,-151.0,0.00031507,31]
[400655559,1767769847643,-151.0,0.00031507,31]
[400655560,1767769847653,-151.0,0.00031507,31]
[400655561,1767769847663,-151.0,0.00031507,31]
[400655562,1767769847672,-151.0,0.00031507,31]
[400655563,1767769847682,-151.0,0.00031507,31]
[400655564,1767769847691,-236.352254,0.00031507,31]
[400655565,1767769847701,-151.0,0.00031507,31]
[400655566,1767769847710,-151.0,0.00031507,31]
[400655567,1767769847720,-151.0,0.00031507,31]
[400655568,1767769847729,-151.0,0.00031507,31]
[400655569,1767769847738,-151.0,0.00031507,31]
[400655570,1767769847747,-151.0,0.00031507,31]
[400655571,1767769847756,-151.0,0.00031507,31]
[400655572,1767769847765,-151.0,0.00031507,31]
[400655573,1767769847774,-151.0,0.00031507,31]
[400655574,1767769847783,-151.0,0.00031507,31]
[400655575,1767769847792,-151.0,0.00031507,31]
[400655576,1767769847801,-161.439733,0.00031507,31]
[400655577,1767769847810,-151.0,0.00031507,31]
[400655578,1767769847820,-151.0,0.00031507,31]
[400655579,1767769847830,-151.0,0.00031507,31]
[400655580,1767769847839,-297.156902,0.00031507,31]
[400655581,1767769847848,-151.0,0.00031507,31]
[400655582,1767769847857,-154.15747,0.00031507,31]
[400655583,1767769847866,-510.04,0.00031723,30]
[400655584,1767769847876,-501.0,0.00031733,4]
[400655585,1767769847885,-150.0,0.00031755,2]
[400655586,1767769847894,-150.0,0.00031755,2]